Workbook

Sheet 招标清单
A1: 红城投禧悦˙雅云交付前保洁服务招标控制价 | N1: 建议，工程量按图纸计算，招标时约定此工程量为上限封顶
A2: 序号 | B2: 需求名称 | C2: 需求内容 | D2: 单位 | E2: 工程量 | F2: 第二批工程量（剩余楼栋） | G2: 复核工程量 | H2: 计算范围 | I2: 计算规则 | J2: 总工程量 | K2: 含税单价 （元） | L2: 合计（元） | M2: 备注 | N2: 工程量 | O2: 计算规则
A3: 1 | B3: 公区部位等 | C3: 1.精装及毛坯公共保洁部位：含架空层、公共走道、电梯前室、楼梯前室及楼梯、地上大堂、归家大堂、电梯轿厢、入户大堂屋面、屋面、售楼部各单体、小区三个大门及入户门等墙面、地面及天棚； 2.清洁方式、用品等综合考虑； 3.满足招标文件“精装开荒服务”要求。 | D3: m2 | E3: =公区部位等!G20 -> 14621.55 | F3: 22316.4 | G3: =公区部位等!G20 -> 14621.55 | H3: 含架空层、公共走道、电梯前室、楼梯前室及楼梯、电梯井、连廊 | I3: 按建筑面积计算规则计算 | J3: 34654.9 | K3: 3.50 | L3: =E3*K3 -> 51,175.43 | M3: 1、本次交付公区需保洁楼栋1#、8#、12#、13#、15#~22#、大门ABC、S1#~S4#。 2、计算范围：架空层、公共走道、电梯前室、楼梯前室及楼梯、电梯井及连廊。 3、计算规则：只计取计算范围内容中的建筑面积（均按内墙内边线计取），其余需清洁部位不再单独计算，已综合考虑。 | N3: 建议让咨询计算一下 | O3: 按实际保洁公区建筑面积
A4: 2 | B4: 地下车库 | C4: 1.地下车库保洁部位（含大堂、落客区、停车位、行车道及设备用房等墙面、地面及天棚）； 2.清洁方式、用品等综合考虑； 3.满足招标文件“精装开荒服务”要求。 | D4: m2 | E4: 48861.71 | F4: 0 | G4: =地下车库!P11 -> 48861.71 | H4: 地下室 | I4: 以地下室工规证总建面为准 | J4: 48861.71 | K4: 1.50 | L4: =E4*K4 -> 73,292.57 | M4: 以地下室工规证总建面为准 | O4: 按地下室建筑面积
A5: 3 | B5: 外立面 | C5: 1.外立面保洁部位：含所有单体楼栋的外立面外面固定窗、防火窗、及平开窗（凸窗）、单元门、百叶、玻璃、阳台栏杆、铝单板、雨蓬、外立面石材(含大门）、幕墙、不锈钢装饰、屋面檐口铝板、屋面窗花、屋面格栅等； 2.清洁方式、用品等综合考虑； 3.满足招标文件“精装开荒服务”要求； 4.必须使用清水，不得破坏绿化。 | D5: m2 | E5: =外立面!K17 -> 16813.36 | F5: 21906.3 | G5: =外立面!K17 -> 16813.355 | H5: 入户门，外墙固定窗，外墙平开窗，外墙防火窗，单元门，百叶窗，屋面格栅 | I5: 入户门，外墙固定窗，外墙平开窗，外墙防火窗，单元门，百叶窗，屋面格栅按洞口面积计算 | J5: 38772.9 | K5: 6.00 | L5: =E5*K5 -> 100,880.13 | M5: 1、本次交付公区需保洁楼栋1#、8#、12#、13#、15#~22#、大门ABC、S1#~S4#。 2、计算范围：外墙固定窗，外墙平开窗（凸窗），外墙防火窗，单元门，百叶窗，屋面格栅。 3、计算规则：外墙固定窗，外墙平开窗（凸窗），外墙防火窗，单元门，百叶窗及屋面格栅均按洞口面积计算，其余需清洁部位不再单独计算，已综合考虑。 | O5: 按门窗面积
A6: 4 | B6: 室外 | C6: 1.包括但不限于广场地面、各种灯具、各类广告灯箱、服务亭、各种标识、成品座椅、背景音 乐喇叭、垃圾桶、绿地、花池、树池、水景观、小品及旗杆、窨井盖、雨水井盖、各种配套设施、分区规划道路（项目红线内）、小区围墙栏杆、文体中心、幼儿园、商铺及商铺临街垃圾清扫等。 2.清洁方式、用品等综合考虑； 3.满足招标文件“精装开荒服务”要求； 4.必须使用清水，不得破坏绿化。 | D6: m2 | E6: 26797.30 | F6: 0.00 | G6: =室外!K19 -> 24927.97 | H6: 地材实际铺贴面积及沥青道路面积计算 | I6: 地面面积 | J6: 26797.30 | K6: 3.00 | L6: =E6*K6 -> 80,391.90 | M6: 1、计算范围：只计取地材实际铺贴面积及沥青道路面积，其余需清洁部位不再单独计算，已综合考虑。 2、计算规则：地材实际铺贴及沥青道路按面积计取。 | O6: 按规划用地面积扣除建筑占地面积
A7: 含税合计 | L7: =SUM(L3:L6) -> 305,740.02
A8: 备注： | B8: 1、上述含税单价包括同一部位多次清洁、垃圾清运、人工费、材料费、清洗措施、高空作业费、吊篮费、材料费、机械费、管理费、利润、规费及不可预见费等； 2、需求名称、需求内容由需求部门确定，工程量由需求部门暂估，最终付款按实际发生工程量及上述计算规则、范围进行计取。
B9: 需求部门： | C9: 编制人： | K9: 审核人：
B11: 架空层 | C11: 3448.97 | D11: 百叶窗 | E11: 1201.305 | L11: 外墙涂料（外立面） | M11: 78342.855 | O11: =5.7*35%-4.7 -> -2.705
B12: 园路 | C12: =34135.54-1576.92-4261.84-965.06-2811.06-3359.49-1721.37*2-765.4*2-2412.79+3625.29+365.55+551.79+249.35 -> 18566.82 | D12: 幕墙 | E12: 230.46 | L12: 外墙涂料（女儿墙内侧及阳台、空调机位等） | M12: 39105.84
B13: 篮球场 | C13: 328.12 | D13: 窗 | E13: =1076.38+1076.38+514.59+1214.88+1335.335+759.15+759.15+1441.2+1441.92+1441.92+1441.92+1441.92+1441.92+1.65 -> 15388.315 | L13: 外墙石材 | M13: 9254.867
B14: 儿童活动 | C14: 1189.36 | E14: =SUM(E11:E13) -> 16820.08 | M14: =SUM(M11:M13) -> 126703.558
B15: 沥青道路 | C15: 999.8
B19: =15072.487-93.581-18.176-6.517-25.792 -> 14928.421
C20: =34135.54-1576.92-4261.84-965.06-2811.06-3359.49-1721.37*2-765.4*2-2412.79+3625.29+365.55+551.79+249.35 -> 18566.82

Sheet 公区部位等
D3: 1、本次交付公区需保洁楼栋1#、8#、12#、13#、15#~22#、大门ABC、S1#~S4#
D4: 1~27公区 | G4: 合计
C5: 1# | D5: =(305.05+3.2-80.11-73.1-80.11)*27 -> 2023.11 | G5: =D5+E5 -> 2023.11
D6: 架空层及工区 | E6: 2~24 | G6: 合计
C7: 8# | D7: =(69.2+235.51+33.01+14.13)*2 -> 703.70 | E7: =(16.835+63.31+6.4/2)*2*23 -> 3833.87 | G7: =E7+F7+D7 -> 4537.57
D8: 1层 | E8: 2~8层 | G8: 合计
C9: 12# | D9: =(268.01-111.57*2+2.8*2)*2 -> 100.94 | E9: =(266.5-111.57*2+2.8*2)*2*7 -> 685.44 | F9: 0 | G9: 786.38
C10: 13# | D10: =268.01-111.57-95.4 -> 61.04 | E10: =(266.5-111.57*2)*7 -> 303.52 | G10: 364.56
C11: 15# | D11: =(61.4+1.33*2)*2 -> 128.12 | E11: =(266.5-111.57*2+2.8*2)*2*7 -> 685.44 | G11: 813.56
C12: 16#、21# | D12: 128.12 | E12: 685.44 | G12: =(E12+F12+D12)*2 -> 1627.12
C13: 17#、20# | D13: =(61.4+1.33*2)+(61.77) -> 125.83 | E13: =(42.56+26.93)+(266.5-111.57*2+2.8*2)*2*6 -> 657.01 | G13: =(E13+F13+D13)*2 -> 1565.68
C14: 18# | D14: 128.12 | E14: 685.44 | G14: =E14+F14+D14 -> 813.56
C15: 19# | D15: 128.12 | E15: 685.44 | G15: 813.56
C16: 22# | D16: 128.12 | E16: 685.44 | G16: 813.56
C17: 大门ABC | D17: 0 | E17: 0 | G17: 0
D18: S1 | E18: S2 | F18: S3+S4
C19: S1#~S4# | D19: 194.88 | E19: =118.33+13.21+63.34 -> 194.88 | F19: =0+73.13 -> 73.13 | G19: =E19+F19+D19 -> 462.89
B20: 总计 | G20: =G5+G7+G9+G11+G12+G13+G14+G15+G16+G17+G19+G10 -> 14621.55

Sheet 地下车库
P11: =48861.71 -> 48861.71

Sheet 外立面
A1: 1、本次交付公区需保洁楼栋1#、8#、12#、13#、15#~22#、大门ABC、S1#~S4#
H3: 最终只按门窗洞口面积及百叶投影面积计算，其余需清洁部位不单独再计算单价，已综合考虑在门窗和百叶单价中。
C4: 入户门 | D4: 铝合金推拉玻璃门 | E4: 铝合金固定窗 | F4: 铝合金平开玻璃窗 | G4: 百叶窗 | H4: 防火窗 | I4: 电子对讲门 | J4: 格栅 | K4: 合计
B5: 1# | C5: =81*1.1*2.3*0 -> 0 | E5: 18.9 | F5: 1153.58 | G5: 359.41 | H5: 79.38 | I5: 10.92 | J5: =413.02-G5 -> 53.61 | K5: =SUM(C5:J5) -> 1675.8
B6: 8# | C6: =138*1.1*2.3*0 -> 0 | E6: 32.2 | F6: 2251.61 | G6: 578.07 | H6: 135.24 | I6: 26.64 | J6: =685.22-G6 -> 107.15 | K6: =SUM(C6:J6) -> 3130.91
B7: 12# | C7: =32*1.3*2.3*0 -> 0 | F7: 1012.45 | G7: 116.46 | I7: 14.56 | J7: 114.405 | K7: 1257.875
B8: 13# | C8: =16*1.3*2.3*0 -> 0 | F8: 518.64 | G8: 57.58 | I8: 7.28 | J8: 50.705 | K8: 634.205
B9: 15# | C9: =32*1.3*2.3*0 -> 0 | E9: 7.87 | F9: 989.63 | G9: 124.85 | I9: 21.83 | J9: 114.405 | K9: 1258.585
B10: 16#、21# | C10: =32*1.3*2.3*2*0 -> 0 | F10: =989.99*2 -> 1979.98 | G10: =100.77*2 -> 201.54 | I10: =21.83*2 -> 43.66 | J10: =114.33*2 -> 228.66 | K10: 2453.84
B11: 17#、20# | C11: =32*1.3*2.3*2*0 -> 0 | F11: =991.18*2 -> 1982.36 | G11: =147.13*2 -> 294.26 | I11: =21.83*2 -> 43.66 | J11: =133.4*2 -> 266.8 | K11: 2587.08
B12: 18# | C12: =32*1.3*2.3*0 -> 0 | E12: 52.31 | F12: 989.99 | G12: 111.95 | I12: =21.83 -> 21.83 | J12: 114.405 | K12: 1290.485
B13: 19# | C13: =32*1.3*2.3*0 -> 0 | E13: 46.3 | F13: 987.29 | G13: 97.13 | I13: 21.83 | J13: 114.405 | K13: 1266.955
B14: 22# | C14: =32*1.3*2.3*0 -> 0 | E14: 52.31 | F14: 987.29 | G14: 100.97 | J14: 114.33 | K14: 1254.9
B15: 大门ABC | K15: 0
B16: S1#~S4# | G16: =0.64+2.08 -> 2.72 | K16: 2.72
B17: 总计 | K17: =SUM(K5:K16) -> 16813.355

Sheet 室外
L12: 最终按大区地材实际铺贴面积及沥青道路面积计算，其余需清洁部位不单独再计算单价，已综合考虑在单价中。
J14: 沥青 | K14: 铺装
I15: A区 | J15: 4988.78 | K15: =14477.43-J15 -> 9488.65
I16: B区/幼儿园 | K16: 10450.541
K19: =J15+K15+K16+K17 -> 24927.971
